Workbook

Sheet Summary
B1: Seva Chakkara:
B2: Consolidated Budget
C4: Monthly Expense | E4: Yearly Expense | F4: Yearly Expense
B5: Items | C5: Indian Rupee | D5: # of Months | E5: Indian Rupee | F5: USD
B7: All Food Items | C7: =E7/D7 -> 92827.61 | D7: 12 | E7: 1113931.32 | F7: =E7/$C$17 -> 24754.02933
B9: Education | C9: =E9/D9 -> 98774.54545 | D9: 11 | E9: 1086520 | F9: =E9/$C$17 -> 24754.02933 | G9: (Request for Funding from NYCNJ Chapter)
B11: Administration & Maintenance | C11: =E11/D11 -> 62335 | D11: 12 | E11: 748020 | F11: =E11/$C$17 -> 16622.66667
B13: Totals | C13: =SUM(C7:C12) -> 253937.1555 | E13: =SUM(E7:E12) -> 2948471.32 | F13: =E13/$C$17 -> 65521.58489
B17: USD / INR Exchange Rate | C17: 45
B19: Guide: Input cells in Blue; output cells in Black

Sheet Edu Expenses
B1: Seva Chakkara: Educational Expenses 2011-2012 | J1: USD Conversion | K1: 45
C3: Nursery and Primary: Teacher/Staff Salaries
C5: Item | H5: Monthly | I5: # of Months | J5: Yearly
B6: 1 | C6: 4 Teachers + Head Master (H.M.) | H6: 15500 | I6: 11 | J6: =I6*#REF! -> 170500
B7: 2 | C7: Driver & School Van Driver | H7: 9000 | I7: 11 | J7: =I7*#REF! -> 99000
B8: 3 | C8: Watchman | H8: 4000 | I8: 11 | J8: =I8*#REF! -> 44000
B9: 4 | C9: Graft Teacher | H9: 2500 | I9: 11 | J9: =I9*#REF! -> 27500
B10: 5 | C10: Dance Master | H10: 2500 | I10: 11 | J10: =I10*#REF! -> 27500
B11: 4 | C11: Sweeper | H11: 1500 | I11: 11 | J11: =I11*#REF! -> 16500
B12: 5 | C12: Scavenger | H12: 1000 | I12: 11 | J12: =I12*#REF! -> 11000
C14: Total | H14: =SUM(E7:E13) -> 36000 | I14: 11 | J14: =I14*#REF! -> 396000 | K14: =J14/$K$1 -> 8800
C18: Primary and Secondary: Recurring Education Expenses
A21: I | C21: Recurring Expenses | G21: Student Names | I21: Monthly Fees | J21: # of Months | K21: Yearly Fees | L21: Uniform | M21: TextBooks | N21: Teachers/Staff Salary | O21: Total | P21: Total Annual Per Child
B22: 1 | C22: Seva Chakkara Nursery & Primary School | H22: 41 | I22: =J22/#REF! -> 0 | J22: 11 | K22: 0 | L22: 34500 | M22: 25000 | N22: =P17 -> 396000 | O22: Rs 4,55,500 | P22: =IF(ISERROR(O22/#REF!),"NA",(O22/#REF!)) -> 11109.7561
B23: =+B22+1 -> 2 | C23: High School Students | H23: 53 | I23: =J23/#REF! -> 3975 | J23: 11 | K23: 43725 | L23: 39400 | M23: 30700 | N23: NA | O23: Rs 1,17,800 | P23: 2222
B24: =+B23+1 -> 3 | C24: Higher Secondary School Students | H24: 4 | I24: =J24/#REF! -> 3000 | J24: 10 | K24: 30000 | L24: 6000 | M24: 1500 | N24: NA | O24: =SUM(#REF!) -> 37500 | P24: =IF(ISERROR(O24/#REF!),"NA",(O24/#REF!)) -> 9375
B25: =+B24+1 -> 4 | C25: I.T.I Technical Education | H25: 2 | I25: =J25/#REF! -> 3000 | J25: 10 | K25: 30000 | L25: 17800 | M25: 8000 | N25: NA | O25: 58800 | P25: 29400
B26: =+B25+1 -> 5 | C26: Diffrently abled | H26: 6 | I26: =J26/#REF! -> 1200 | J26: 10 | K26: 12000 | L26: 2400 | M26: 4000 | N26: NA | O26: 19600 | P26: 3266
B27: 11 | C27: Engineering | H27: 2 | I27: 12000 | J27: 10 | K27: =60000*2 -> 120000 | L27: NA | M27: =10000 -> 10000 | N27: NA | O27: 142000 | P27: 71000
B28: 12 | C28: College | H28: 2 | I28: =J28/#REF! -> 1300 | J28: 10 | K28: 13000 | L28: 1000 | M28: 1500 | N28: NA | O28: 16800 | P28: 8400
C29: Sub Total | H29: =SUM(H22:H28) -> 110 | I29: =SUM(I23:I28) -> 24475 | K29: =SUM(K22:K28) -> 248725 | L29: =SUM(L22:L28) -> 101100 | M29: =SUM(M22:M28) -> 80700 | N29: =SUM(N22:N28) -> 396000 | O29: Rs 8,48,000 | P29: Rs 1,34,773
A34: II | C34: Non- Recurring Expenses
C35: Charts | O35: 1500
C36: 4 Block Board | O36: 5000
C37: Amenities | O37: 7500
C38: Sub Total | O38: =SUM(O35:O37) -> 14000
A40: I & II | C40: Total | O40: Rs 8,62,000 | P40: =862000/$K$1 -> 19155.55556
A42: lll | C42: Misc Educational Related Expenses | G42: Description | I42: Monthly Expenses | J42: # of Months | O42: Yearly Total
B43: 1 | C43: Conveyance | G43: Transport from Seva Chakkara to their colleges | I43: 4500 | J43: 10 | O43: =R41*#REF! -> 45000
B44: 2 | C44: Food | G44: Lunch food, evening tea & biscuits | I44: 3500 | J44: 10 | O44: =R42*#REF! -> 35000
B45: 3 | C45: Notebook & Stationary | I45: 2500 | J45: 10 | O45: 25000
B46: 4 | C46: Private Tuition | I46: 7000 | J46: 10 | O46: 70000
B47: 5 | C47: Unit Test Examination | I47: 1800 | J47: 10 | O47: 18000
B48: 6 | C48: News paper & Magazine | I48: 1800 | J48: 12 | O48: =R47*#REF! -> 21600
B49: 7 | C49: Photo copy charges for Programs | I49: 1235 | J49: 10 | O49: =R48*#REF! -> 12350
B50: 8 | C50: College Students books/periodicals | I50: 568 | J50: 10 | O50: =R49*#REF! -> 5680
B51: 9 | C51: Training expenses I.T.I. Students | I51: 200 | J51: 10 | O51: =R50*#REF! -> 2000
B52: 10 | C52: Additional outside tuition | I52: 5500 | J52: 10 | O52: 5500
C54: Sub Total | I54: 28603 | O54: Rs 2,40,130 | P54: =240130/$K$1 -> 5002.708333
A57: I & II & III | C57: Total | O57: Rs 11,02,130 | P57: =1102130/$K$1 -> 24491.77778
O58: Rs 11,02,130 | P58: =1102130/$K$1 -> 24491.77778

Sheet Food
C2: Section Project
B5: I | C5: Orphanage Staff Salary | D5: Description | E5: Monthly Expenses | F5: # of Months | G5: Yearly Expense
B6: 1 | C6: Administrative Officer | E6: 3000 | F6: 12 | G6: =E6*F6 -> 36000
B7: 2 | C7: Cook (2) | E7: 5000 | F7: =F6 -> 12 | G7: 60000
B8: 3 | C8: Asst. Cook 1 | E8: 2000 | F8: 12 | G8: 24000
B9: 4 | C9: Store Keeper | E9: 2000 | F9: 12 | G9: 24000
B10: 5 | C10: Medical Asst. | E10: 2000 | F10: 12 | G10: 24000
B11: 6 | C11: Boys & Girls Warden (2) | E11: 6000 | F11: 12 | G11: 72000
B12: 7 | C12: Office Asst. | E12: 3000 | F12: 12 | G12: 36000
C13: Sub Total | E13: 23000 | G13: =SUM(G7:G12) -> 276000
B16: II | C16: Administration & Maintenance | D16: Description | E16: Monthly Expenses | F16: # of Months | G16: Yearly Expense
C17: Computer maintenance | E17: 500 | F17: =#REF! -> 12 | G17: =E17*F17 -> 6000
C18: Computer Sheet | E18: 500 | F18: =F17 -> 12 | G18: 6000
C19: Courier charges | E19: 140 | F19: 12 | G19: 1680
C20: Photo expenses | E20: 500 | F20: 12 | G20: 6000
C21: Binding charges | E21: 248 | F21: 12 | G21: 2976
C22: Sanitation | E22: 700 | F22: 12 | G22: 8400
C23: Orphanage cleaning charges | E23: 300 | F23: 12 | G23: 3600
C24: Electricity | E24: 7000 | F24: 12 | G24: 84000
C25: Telephones | D25: (2) approximately | E25: 3000 | F25: 12 | G25: 36000
C26: Transportation | E26: 985 | F26: 12 | G26: 11820
C27: Conveyance for own Auto | E27: 9000 | F27: 12 | G27: 108000
C28: Vehicle repair (1 Auto, 4 Cycles) | E28: 450 | F28: 12 | G28: 5400
C29: Building maintenance | E29: 250 | F29: 12 | G29: 3000
C30: Furniture & Fitting Maintenance | E30: 300 | F30: 12 | G30: 3600
C31: Primary & Nursery School maintenance | E31: 100 | F31: 12 | G31: 1200
C32: Sundry | E32: 4000 | F32: 12 | G32: 48000
C33: Sub Total | E33: =SUM(E23:E32) -> 25385 | G33: =SUM(G23:G31) -> 256620
B35: III | C35: Children Health, Food & Recreation | D35: Description | E35: Monthly Expenses | F35: # of Months | G35: Yearly Expense
C36: Pooja expenses | E36: 600 | F36: =F32 -> 12 | G36: =E36*F36 -> 7200
C37: Kids, children, excursion | E37: 500 | F37: =F36 -> 12 | G37: 6000
C38: Dress Materials inner garments | E38: 300 | F38: 12 | G38: 3600
C39: Bed Materials | E39: 150 | F39: 12 | G39: 1800
C40: Mosquito mats | E40: 400 | F40: 12 | G40: 4800
C41: Broom ( 2 Buildings) | E41: 150 | F41: 12 | G41: 1800
C42: Spindle Broom | E42: 100 | F42: 12 | G42: 1200
C43: Litmus perfume for toilet | E43: 50 | F43: 12 | G43: 600
C44: Gas repair | E44: 110 | F44: 12 | G44: 1320
C45: Napkins expense (??) | E45: 90 | F45: 12 | G45: 1080
C46: Honorarium | E46: 4500 | F46: 12 | G46: 54000
C47: Medical | D47: average expenditure | E47: 8000 | F47: 12 | G47: 96000
C48: Sub Total | E48: =SUM(E36:E47) -> 14950 | G48: =SUM(G36:G47) -> 179400
B51: I & II & III | C51: Total | E51: Rs 63,335 | G51: Rs 7,12,020

Sheet BuildingAdministration
B1: Seva Chakkara:
B2: Food Items
B4: Daily Essential Items
B6: Food Item | D6: Qty Per Child | F6: # of Children | G6: Total Qty | H6: Total Qty | I6: Cost per Item | J6: Total Monthly
C7: Morning | D7: Evening | E7: Total | G7: Per Day | H7: Per Month | J7: Expense
B9: Milk | C9: 150 | D9: 170 | E9: 320ml | F9: 112 | G9: 35840 | H9: 1075.2 L | I9: 22 | J9: Rs 23,654
B10: Rice Govt. | C10: 100 | D10: 400 | E10: 500g | F10: 112 | G10: 56000 | H10: 840.0kg | I10: 1 | J10: Rs 840
B11: Out side Rice | C11: NA | D11: NA | E11: NA | F11: 112 | G11: NA | H11: 300kg | I11: 30 | J11: Rs 9000
B12: Sugar | C12: 20 | D12: 20 | E12: 40g | F12: 112 | G12: 4480 | H12: 134.4kg | I12: 18 | J12: Rs 2420
B13: Wheat | C13: 10 | D13: 10 | E13: 20g | F13: 112 | G13: 2240 | H13: 67.2kg | I13: 7.5 | J13: Rs 504
B14: Gas Cylinder | C14: NA | D14: NA | E14: NA | F14: 112 | G14: NA | H14: 20Nos | I14: 370 | J14: Rs 7400
B15: Total Daily Essential Items | J15: Rs 43,818
B18: Monthly Food Expenses
A20: Sl.No. | B20: List of Provision & Groceries | C20: Qty Required | D20: Unit price | E20: Monthly Expenses | F20: # of Months | G20: Yearly Expense
A21: 1 | B21: Essential Food Items (from above) | E21: 43818 | F21: 12 | G21: Rs 5,25,816
A22: 2 | B22: Toor Dhal | C22: 120Kg | D22: 79 | E22: 9480 | F22: 12 | G22: Rs 1,13,760
A23: 3 | B23: Ured Dhal | C23: 45Kg | D23: 71 | E23: 3195 | F23: 12 | G23: Rs 38,340
A24: 4 | B24: Moon Dhal | C24: 60Kg | D24: 78 | E24: 4710 | F24: 12 | G24: Rs 56,520
A25: 5 | B25: Garam Dhal | C25: 40Kg | D25: 38 | E25: 1520 | F25: 12 | G25: Rs 18,240
A26: 6 | B26: Mustard | C26: 6Kg | D26: 47 | E26: 282 | F26: 12 | G26: Rs 3,384
A27: 7 | B27: Pepper | C27: 6Kg | D27: 305 | E27: 1830 | F27: 12 | G27: Rs 21,960
A28: 8 | B28: Jeera | C28: 6Kg | D28: 195 | E28: 1170 | F28: 12 | G28: Rs 14,040
A29: 9 | B29: Methi | C29: 2Kg | D29: 46.5 | E29: 93 | F29: 12 | G29: Rs 1,116
A30: 10 | B30: L.G. Asafoetida | C30: 25 Boxes | D30: 64.5 | E30: 1612 | F30: 12 | G30: Rs 19,344
A31: 11 | B31: Turmeric Powder | C31: 3Kg | D31: 120 | E31: 720 | F31: 12 | G31: Rs 8,640
A32: 12 | B32: Tamarind | C32: 20Kg | D32: 108 | E32: 2160 | F32: 12 | G32: Rs 25,920
A33: 13 | B33: Gundu Chillies | C33: 15Kg | D33: 127 | E33: 1905 | F33: 12 | G33: Rs 22,860
A34: 14 | B34: Dhaniya Local | C34: 25Kg | D34: 76 | E34: 1900 | F34: 12 | G34: Rs 22,800
A35: 15 | B35: Cooking Oil | C35: 130Kg | D35: 75 | E35: 9750 | F35: 12 | G35: Rs 1,17,000
A36: 16 | B36: Coconut Oil | C36: 6Kg | D36: 224 | E36: 1344 | F36: 12 | G36: Rs 16,128
A37: 17 | B37: Gingely Oil | C37: 20Kg | D37: 139 | E37: 2795 | F37: 12 | G37: Rs 33,540
A38: 18 | B38: Bengal gram | C38: 15Kg | D38: 40 | E38: 600 | F38: 12 | G38: Rs 7,200
A39: 19 | B39: Salt | C39: 60Kg | D39: 13 | E39: 810 | F39: 12 | G39: Rs 9,720
A40: 20 | B40: Jaggery | C40: 30Kg | D40: 41 | E40: 1230 | F40: 12 | G40: Rs 14,760
A41: 21 | B41: Tea Powder | C41: 10Kg | D41: 255 | E41: 2550 | F41: 12 | G41: Rs 30,600
A42: 22 | B42: Vermicelli | C42: 35Kg | D42: 42 | E42: 1470 | F42: 12 | G42: Rs 17,640
A43: 23 | B43: Sooji | C43: 35Kg | D43: 12 | E43: 437 | F43: 12 | G43: Rs 5,244
A44: 24 | B44: Chashew | C44: 1.5Kg | D44: 590 | E44: 885 | F44: 12 | G44: Rs 10,620
A45: 25 | B45: Cardamon | C45: 0.3gm | D45: 820 | E45: 820 | F45: 12 | G45: Rs 9,840
A46: 26 | B46: Drygrapes | C46: 2Kg | D46: 180 | E46: 360 | F46: 12 | G46: Rs 4,320
A47: 27 | B47: Spices | C47: 2Kg | D47: 250 | E47: 500 | F47: 12 | G47: Rs 6,000
A48: 28 | B48: Applam | C48: 15kg | D48: 250 | E48: 3750 | F48: 12 | G48: Rs 45,000
A49: 29 | B49: Match Box | C49: 6 Bandals | D49: 5 | E49: 30 | F49: 12 | G49: Rs 360
A50: 30 | B50: Soap (Washing) | C50: 272 Nos | D50: 15 | E50: 4080 | F50: 12 | G50: Rs 48,960
A51: 31 | B51: Soap(Bathing) | C51: 272 Nos | D51: 13 | E51: 3536 | F51: 12 | G51: Rs 42,432
A52: 32 | B52: Sabena | C52: 25 Packets | D52: 12 | E52: 300 | F52: 12 | G52: Rs 3,600
A53: 33 | B53: Vim Dish was bar | C53: 20 Nos | D53: 17 | E53: 340 | F53: 12 | G53: Rs 4,080
A54: 34 | B54: Phenyle | C54: 25 Prattle | D54: 30 | E54: 750 | F54: 12 | G54: Rs 9,000
A55: 35 | B55: Blecing Poder | C55: 20 Packets | D55: 30 | E55: 750 | F55: 12 | G55: Rs 9,000
A56: 36 | B56: Water Tax & Charges | C56: 0 | E56: 700 | F56: 12 | G56: Rs 8,400
A57: 37 | B57: Vegetables ( from Below) | C57: 869 | D57: 515 | E57: 16691 | F57: 12 | G57: Rs 2,00,280
B58: Total | E58: 128873 | G58: Rs15,46,464
A61: Monthly Vegetables Expenses Average
A63: Sl.No. | B63: List of Provision & Groceries | C63: Qty Required | D63: Unit price | E63: Monthly Expenses | F63: # of Months | G63: Yearly Expense
A64: 1 | B64: Tomato | C64: 150kg | D64: 6 | E64: 900 | F64: 12 | G64: Rs 10,800
A65: 2 | B65: Carrot | C65: 20kg | D65: 64 | E65: Rs 1,280 | F65: 12 | G65: Rs 15,360
A66: 3 | B66: Beetroot | C66: 20kg | D66: 30 | E66: Rs 600 | F66: 12 | G66: Rs 7,200
A67: 4 | B67: Raddish | C67: 15kg | D67: 20 | E67: Rs 300 | F67: 12 | G67: Rs 3,600
A68: 5 | B68: Brinjal | C68: 20kg | D68: 25 | E68: Rs 500 | F68: 12 | G68: Rs 6,000
A69: 6 | B69: Turnip | C69: 14kg | D69: 20 | E69: Rs 280 | F69: 12 | G69: Rs 3,360
A70: 7 | B70: Lady'sfinger | C70: 25kg | D70: 19 | E70: Rs 475 | F70: 12 | G70: Rs 5,700
A71: 8 | B71: Cabbage | C71: 15kg | D71: 20 | E71: Rs 300 | F71: 12 | G71: Rs 3,600
A72: 9 | B72: Beans | C72: 20kg | D72: 35 | E72: Rs 700 | F72: 12 | G72: Rs 8,400
A73: 10 | B73: Potato | C73: 25kg | D73: 15 | E73: Rs 375 | F73: 12 | G73: Rs 4,500
A74: 11 | B74: Greens | C74: 60kg | D74: 15 | E74: Rs 900 | F74: 12 | G74: Rs 10,800
A75: 12 | B75: Bottle guard | C75: 10kg | D75: 14 | E75: Rs 140 | F75: 12 | G75: Rs 1,680
A76: 13 | B76: Rawplantain | C76: 15kg | D76: 50 | E76: Rs 750 | F76: 12 | G76: Rs 9,000
A77: 14 | B77: Corn | C77: 15kg | D77: 30 | E77: Rs 450 | F77: 12 | G77: Rs 5,400
A78: 15 | B78: Bittergourd | C78: 10kg | D78: 25 | E78: Rs 250 | F78: 12 | G78: Rs 3,000
A79: 16 | B79: Peas | C79: 8kg | D79: 40 | E79: Rs 320 | F79: 12 | G79: Rs 3,840
A80: 17 | B80: Cauliflower | C80: 15kg | D80: 25 | E80: Rs 375 | F80: 12 | G80: Rs 4,500
A81: 18 | B81: Onion | C81: 150kg | D81: 30 | E81: Rs 4,500 | F81: 12 | G81: Rs 54,000
A82: 19 | B82: Drumstick | C82: 15kg | D82: 35 | E82: Rs 525 | F82: 12 | G82: Rs 6,300
A83: 20 | B83: Pumpkin | C83: 10kg | D83: 20 | E83: Rs 200 | F83: 12 | G83: Rs 2,400
A84: 21 | B84: Capsicum | C84: 10kg | D84: 30 | E84: Rs 300 | F84: 12 | G84: Rs 3,600
A85: 22 | B85: Cucumber | C85: 15kg | D85: 25 | E85: Rs 375 | F85: 12 | G85: Rs 4,500
A86: 23 | B86: Ginger | C86: 20kg | D86: 16 | E86: Rs 320 | F86: 12 | G86: Rs 3,840
A87: 24 | B87: Mushroom | C87: 10kg | D87: 35 | E87: Rs 350 | F87: 12 | G87: Rs 4,200
A88: 25 | B88: spinach | C88: 12kg | D88: 70 | E88: Rs 840 | F88: 12 | G88: Rs 10,800
A89: 26 | B89: garlic | C89: 100kg | D89: 40 | E89: Rs 4,000 | F89: 12 | G89: Rs 48,000
A90: 27 | B90: Sweet Potatoes | C90: 20kg | D90: 17 | E90: Rs 340 | F90: 12 | G90: Rs 4,080
A91: 28 | B91: Pudina | C91: 25kg | D91: 15 | E91: Rs 375 | F91: 12 | G91: Rs 4,500
A92: 29 | B92: Curry leaves | C92: 25kg | D92: 15 | E92: Rs 375 | F92: 12 | G92: Rs 4,500
B94: Total | D94: =SUM(D64:D93) -> 801 | E94: Rs 17,815 | G94: Rs 2,57,460
